bitfinex-derivatives/quotes_SOLF0:USTF0_20241217
["timestamp","ask_amount","ask_price","bid_price","bid_amount"]
[1734466709293,8.23792068,226.64,226.56,2.3]
[1734466709598,2.2068,226.59,226.56,2.3]
[1734466709996,8.23792068,226.64,226.5,9.75732068]
[1734466710202,2.2069,226.57,226.5,9.75732068]
[1734466710501,2.2069,226.57,226.51,2.3]
[1734466711401,8.23792068,226.58,226.47,2.3]
[1734466711798,8.23792068,226.58,226.44,8.23792068]
[1734466711995,8.23792068,226.58,226.46,2.3]
[1734466712194,2.2077,226.5,226.46,2.3]
[1734466712495,8.23792068,226.58,226.46,2.3]
[1734466712903,2.2071,226.55,226.46,4.5079]
[1734466713209,8.23792068,226.58,226.46,4.5079]
[1734466714101,2.207,226.56,226.51,2.2074]
[1734466714298,2.207,226.56,226.51,4.5074]
[1734466714499,1.4811,226.62,226.51,4.5074]
[1734466716300,8.23792068,226.6,226.47,8.23792068]
[1734466716504,8.23792068,226.56,226.47,2.3]
[1734466716797,2.2077,226.5,226.4,1.5615]
[1734466716998,8.23792068,226.5,226.41,4.5084]
[1734466718302,2.208,226.46,226.41,4.5084]
[1734466721210,8.23792068,226.5,226.41,2.3]
[1734466722106,8.23792068,226.5,226.4,1.5615]
[1734466722310,8.23792068,226.5,226.36,0.16499]
[1734466722311,8.23792068,226.47,226.38,2.3]
[1734466722706,8.23792068,226.47,226.38,4.5087]
[1734466722903,2.3,226.48,226.38,2.3]
[1734466724204,2.2082,226.44,226.39,2.2086]
[1734466724409,2.2082,226.44,226.38,2.3]
[1734466725012,11.09882068,226.52,226.38,10.53792068]
[1734466725306,2.2083,226.43,226.38,4.5087]
[1734466725910,2.2083,226.43,226.38,2.2087]
[1734466727605,8.23792068,226.49,226.37,8.23792068]
[1734466727806,13.25,226.68,226.37,8.23792068]
[1734466727807,363.66208408,227.09,226.37,8.23792068]
[1734466728010,8.23792068,226.56,226.4,8.23792068]
[1734466728210,2.2075,226.51,226.46,2.2079]
[1734466728410,2.2075,226.51,226.41,2.3]
[1734466729008,2.2075,226.51,226.46,2.2079]
[1734466729210,13.53712068,226.59,226.46,2.3]
[1734466729407,10.53792068,226.59,226.47,1.4711]
[1734466729708,2.207,226.56,226.47,1.4711]
[1734466730210,10.53792068,226.59,226.52,2.2074]
[1734466730414,10.53792068,226.59,226.47,1.4711]
[1734466730415,8.23792068,226.62,226.51,2.3]
[1734466730713,43.29232524,226.63,226.51,2.3]
[1734466730714,8.23792068,226.59,226.51,2.3]
[1734466731817,2.2071,226.56,226.51,2.3]
[1734466732815,2.2071,226.56,226.51,4.5074]
[1734466733512,8.23792068,226.59,226.51,4.5074]
[1734466733810,8.23792068,226.56,226.48,2.3]
[1734466734015,8.23792068,226.56,226.47,1.4711]
[1734466734314,8.23792068,226.57,226.47,3.6789]
[1734466734518,8.23792068,226.57,226.47,1.4711]
[1734466735513,2.2075,226.52,226.48,2.2078]
[1734466735713,8.23792068,226.57,226.47,1.4711]
[1734466735909,10.53792068,226.6,226.47,1.4711]
[1734466736105,2.2071,226.56,226.47,1.4711]
[1734466736306,8.23792068,226.6,226.47,1.4711]
[1734466736711,2.207,226.56,226.52,2.2074]
[1734466737311,8.23792068,226.57,226.47,1.4711]
[1734466737808,8.23792068,226.54,226.45,5.18625198]
[1734466738016,8.23792068,226.51,226.4,1.5124]
[1734466738212,8.23792068,226.51,226.41,2.3]
[1734466739012,2.3,226.57,226.45,8.23792068]
[1734466739210,8.23792068,226.59,226.46,2.3]
[1734466739512,2.2074,226.52,226.48,2.2077]
[1734466740116,10.53792068,226.56,226.42,8.23792068]
[1734466740323,2.2075,226.52,226.43,2.3]
[1734466740712,2.2075,226.52,226.45,2.208]
[1734466741016,10.53792068,226.56,226.43,2.3]
[1734466741017,2.2073,226.53,226.43,2.3]
[1734466741515,2.2074,226.52,226.47,2.2078]
[1734466742513,1.4828,226.61,226.48,10.53792068]
[1734466742721,1.4828,226.61,226.49,3.8249]
[1734466743021,6.89357662,226.62,226.49,3.8249]
[1734466744719,8.23792068,226.6,226.49,3.8249]
[1734466745719,6.89357662,226.62,226.49,3.8249]
[1734466745918,2.2068,226.59,226.51,2.2075]
[1734466746123,6.89357662,226.62,226.51,2.2075]
[1734466746725,2.2072,226.55,226.51,2.2075]
[1734466747220,8.23792068,226.6,226.49,3.8249]
[1734466747529,8.23792068,226.57,226.47,2.3]
[1734466747720,5.36967662,226.62,226.47,2.3]
[1734466748026,5.36967662,226.62,226.51,8.23792068]
[1734466748221,5.36967662,226.62,226.52,3.7597]
[1734466748426,5.36967662,226.62,226.54,2.2072]
[1734466749426,2.2069,226.57,226.54,2.2072]
[1734466750127,2.2068,226.58,226.54,2.2072]
[1734466750826,13.6075973,226.62,226.53,2.2073]
[1734466751422,2.2067,226.6,226.53,2.2073]
[1734466751622,13.6075973,226.62,226.53,2.2073]
[1734466752428,2.207,226.56,226.53,2.2073]
[1734466752826,8.23792068,226.59,226.51,4.5074]
[1734466753021,8.23792068,226.59,226.51,2.3]
[1734466753222,8.23792068,226.56,226.42,12.66942068]
[1734466753527,8.23792068,226.53,226.42,1.442]
[1734466753728,2.3,226.52,226.42,1.442]
[1734466754328,2.2081,226.45,226.42,1.442]
[1734466754932,2.2082,226.44,226.42,1.442]
[1734466755422,2.208,226.46,226.42,1.442]
[1734466756530,8.23792068,226.56,226.42,9.67992068]
[1734466756927,10.53792068,226.56,226.42,9.67992068]
[1734466757131,8.23792068,226.53,226.42,1.442]
[1734466757728,2.208,226.46,226.42,3.6503]
[1734466760035,2.2078,226.48,226.42,1.442]
[1734466760638,2.2076,226.5,226.42,9.67992068]
[1734466760839,10.53792068,226.56,226.42,9.67992068]
[1734466762140,10.53792068,226.56,226.46,2.2079]
[1734466762141,2.2075,226.51,226.46,2.2079]
[1734466762332,10.53792068,226.56,226.46,2.2079]
[1734466762636,8.23792068,226.59,226.45,10.53792068]
[1734466762834,13.6075973,226.62,226.48,8.23792068]
[1734466763235,2.207,226.57,226.52,2.2074]
[1734466763936,13.6075973,226.62,226.52,2.2074]
[1734466764136,2.207,226.56,226.52,2.2074]
[1734466764839,2.2071,226.55,226.51,4.5074]
[1734466766933,2.207,226.56,226.52,2.2073]
[1734466767138,13.6075973,226.62,226.52,2.2073]
[1734466768137,2.2068,226.59,226.52,2.2073]
[1734466768342,13.6075973,226.62,226.52,2.2073]
[1734466769035,2.2071,226.55,226.52,2.2073]
[1734466769434,13.6075973,226.62,226.52,2.2073]
[1734466769632,2.2071,226.56,226.52,2.2073]
[1734466770543,2.2071,226.56,226.51,2.3]
[1734466770741,2.2071,226.56,226.53,2.2072]
[1734466771042,0.2812,226.69,226.51,2.3]
[1734466771043,9.73172068,226.68,226.54,8.23792068]
[1734466771240,8.23792068,226.71,226.63,2.2063]
[1734466771740,2.206,226.66,226.62,2.2064]
[1734466771936,8.23792068,226.71,226.62,2.2064]
[1734466772945,5.18818987,226.7,226.62,2.2064]
[1734466773544,2.2061,226.66,226.62,2.2064]
[1734466774444,2.2061,226.65,226.62,2.2064]
[1734466776346,2.2063,226.63,226.58,2.2067]
[1734466776651,5.18818987,226.7,226.57,10.53792068]
[1734466777146,2.2064,226.62,226.58,2.2068]
[1734466779448,8.23792068,226.68,226.59,2.2067]
[1734466779449,2.2063,226.63,226.59,2.2067]
[1734466780151,8.23792068,226.65,226.56,2.3]
[1734466780443,8.23792068,226.65,226.54,2.3]
[1734466780847,2.2067,226.6,226.55,2.2071]
[1734466781245,8.23792068,226.65,226.55,2.2071]
[1734466781545,2.2064,226.62,226.55,2.2071]
[1734466781745,8.23792068,226.65,226.54,2.3]
[1734466781943,8.23792068,226.65,226.56,2.207]
[1734466782147,2.2066,226.61,226.56,2.207]
[1734466782751,8.23792068,226.65,226.56,2.207]
[1734466783745,8.23792068,226.65,226.54,2.3]
[1734466783952,8.23792068,226.62,226.54,2.3]
[1734466784346,8.23792068,226.65,226.54,2.3]
[1734466784544,8.23792068,226.65,226.54,2.2071]
[1734466784750,8.23792068,226.65,226.52,5.226]
[1734466784952,8.23792068,226.62,226.52,2.926]
[1734466785248,8.23792068,226.65,226.52,9.70762068]
[1734466785463,5.18818987,226.7,226.55,8.23792068]
[1734466785749,16.29623846,226.7,226.56,2.3]
[1734466785946,5.18818987,226.7,226.56,2.3]
[1734466786145,2.2063,226.63,226.56,2.3]
[1734466786350,5.18818987,226.7,226.56,2.3]
[1734466786655,8.23792068,226.65,226.55,2.3]
[1734466787155,8.23792068,226.62,226.53,2.3]
[1734466787655,2.207,226.56,226.53,2.3]
[1734466788049,8.23792068,226.62,226.53,2.3]
[1734466788247,8.23792068,226.66,226.53,2.3]
[1734466788452,10.53792068,226.66,226.53,2.3]
[1734466789256,2.2066,226.61,226.57,2.2068]
[1734466790554,10.53792068,226.66,226.57,2.2068]
[1734466791058,2.2066,226.61,226.57,2.2068]
[1734466791955,2.2066,226.61,226.57,7.47631585]
[1734466792459,2.2066,226.61,226.58,2.2067]
[1734466792652,2.2064,226.63,226.59,5.26951585]
[1734466793059,5.26951585,226.66,226.59,7.47621585]
[1734466793256,2.2065,226.62,226.59,5.26951585]
[1734466793757,2.2063,226.63,226.59,7.47621585]
[1734466794462,5.26951585,226.66,226.59,7.47621585]
[1734466794762,2.2064,226.62,226.59,7.47621585]
[1734466795863,2.2064,226.62,226.58,2.3]
[1734466796063,2.2065,226.61,226.58,4.5068]
[1734466800568,2.2064,226.62,226.58,4.5068]
[1734466803369,2.2065,226.61,226.58,4.5068]
[1734466810174,5.26951585,226.59,226.52,1.4697]
[1734466810373,5.26951585,226.57,226.52,1.4697]
[1734466811371,2.2072,226.55,226.52,1.4697]
[1734466813170,5.26951585,226.67,226.53,5.26951585]
[1734466813476,5.26951585,226.67,226.6,5.26951585]
[1734466813877,2.2065,226.62,226.6,5.26951585]
[1734466817678,2.2065,226.61,226.6,5.26951585]
[1734466819476,2.2064,226.62,226.6,5.26951585]
[1734466820275,2.2065,226.61,226.58,5.26951585]
[1734466821280,2.2065,226.61,226.58,7.47631585]
[1734466823979,5.26951585,226.65,226.58,5.26951585]
[1734466824281,2.2064,226.62,226.59,2.2067]
[1734466824782,11.15203023,226.67,226.6,5.26951585]
[1734466824977,5.26951585,226.71,226.64,5.26951585]
[1734466825183,5.26951585,226.71,226.64,7.56951585]
[1734466826284,2.2058,226.68,226.64,9.77561585]
[1734466827478,2.2058,226.68,226.65,2.2061]
[1734466829384,2.2057,226.7,226.66,2.206]
[1734466829585,5.26951585,226.71,226.66,2.206]
[1734466829885,5.26951585,226.71,226.64,7.56951585]
[1734466830685,2.2057,226.69,226.65,2.2061]
[1734466831486,2.2059,226.68,226.65,2.2061]
[1734466833387,2.2059,226.68,226.66,2.206]
[1734466833588,2.2059,226.68,226.64,7.56951585]
[1734466833988,2.2059,226.68,226.65,2.206]
[1734466835090,2.2059,226.68,226.64,7.56951585]
[1734466835291,2.2059,226.68,226.66,2.206]
[1734466835590,2.2057,226.69,226.66,2.206]
[1734466835988,2.2057,226.69,226.65,2.2061]
[1734466836788,5.26951585,226.67,226.54,1.5497]
[1734466836995,5.26951585,226.62,226.55,2.28]
[1734466837599,5.26951585,226.62,226.56,2.2069]
[1734466838294,2.28,226.75,226.63,2.2063]
[1734466838489,5.26951585,226.71,226.63,7.47581585]
[1734466839496,5.26951585,226.71,226.64,2.2062]
[1734466840488,5.26951585,226.71,226.63,7.47581585]
[1734466841495,2.206,226.67,226.63,7.47581585]
[1734466842296,5.26951585,226.67,226.62,2.28]
[1734466842591,5.26951585,226.63,226.56,2.28]
[1734466842796,5.26951585,226.61,226.54,9.09921585]
[1734466842997,2.2067,226.59,226.55,2.2071]
[1734466843799,5.26951585,226.61,226.55,2.2071]
[1734466843997,2.2068,226.58,226.55,2.2071]
[1734466846206,5.26951585,226.61,226.54,1.5497]
[1734466846398,5.26951585,226.59,226.5,1.4911]
[1734466846701,5.26951585,226.59,226.5,9.04061585]
[1734466846902,5.26951585,226.55,226.44,1.4444]
[1734466847196,5.26951585,226.55,226.47,5.26951585]
[1734466847592,2.9466,226.61,226.43,1.4106]
[1734466847593,5.26951585,226.51,226.43,1.4106]
[1734466847790,5.26951585,226.51,226.43,8.96011585]
[1734466847998,2.28,226.57,226.43,8.96011585]
[1734466847999,5.26951585,226.49,226.43,1.4106]
[1734466848195,5.26951585,226.49,226.42,2.28]
[1734466848395,5.26951585,226.45,226.4,2.28]
[1734466848691,5.26951585,226.45,226.34,2.9539]
[1734466848692,5.26951585,226.43,226.36,2.28]
[1734466849895,2.2086,226.4,226.35,5.26951585]
[1734466850100,2.2086,226.4,226.34,5.2339]
[1734466850598,8.2498518,226.45,226.34,5.2339]
[1734466850799,2.2086,226.39,226.34,5.2339]
[1734466851400,2.2086,226.39,226.34,10.53499189]
[1734466851904,2.2086,226.39,226.34,5.2339]
[1734466852300,8.2498518,226.45,226.34,1.4106]
[1734466852498,8.2498518,226.42,226.29,1.5092]
[1734466852704,10.5298518,226.42,226.31,2.28]
[1734466853598,2.2092,226.34,226.31,2.28]
[1734466853795,2.2092,226.34,226.29,2.2096]
[1734466854003,2.2092,226.34,226.28,2.28]
[1734466854004,8.2498518,226.36,226.26,5.20910899]
[1734466854203,8.2498518,226.36,226.25,2.28]
[1734466854608,2.2095,226.31,226.25,4.49]
[1734466855001,8.2498518,226.36,226.25,4.49]
[1734466855410,2.2096,226.29,226.25,2.28]
[1734466855610,8.2498518,226.36,226.22,1.4326]
[1734466855809,8.2498518,226.36,226.23,2.28]
[1734466856108,8.2498518,226.36,226.22,3.7126]
[1734466856308,2.2099,226.26,226.22,2.28]
[1734466857704,8.2498518,226.36,226.24,8.2498518]
[1734466857904,2.28,226.37,226.24,8.2498518]
[1734466858516,2.2092,226.33,226.24,8.2498518]
[1734466859309,2.2092,226.33,226.28,2.2097]
[1734466859609,8.2498518,226.39,226.27,10.5298518]
[1734466859808,8.2498518,226.39,226.28,3.7968]
[1734466860009,2.2089,226.37,226.3,2.2095]
[1734466860204,8.2498518,226.39,226.3,2.2095]
[1734466860412,5.2209,226.41,226.28,3.7968]
[1734466860610,2.2089,226.37,226.32,2.2093]
[1734466861012,2.2089,226.37,226.28,5.3567]
[1734466861419,2.2086,226.4,226.3,8.2498518]
[1734466861612,10.5298518,226.45,226.31,1.483]
[1734466862216,2.2086,226.4,226.31,1.483]
[1734466863408,2.2086,226.4,226.34,2.2091]
[1734466863615,2.2086,226.4,226.34,2.28]
[1734466864419,2.2086,226.4,226.35,2.209]
[1734466869621,2.2084,226.42,226.34,2.28]
[1734466870016,8.2498518,226.45,226.34,2.28]
[1734466870216,2.2085,226.41,226.35,2.2089]
[1734466870421,13.66365572,226.45,226.35,2.2089]
[1734466871523,2.2086,226.4,226.35,2.2089]
[1734466871718,2.2086,226.4,226.36,2.2089]
[1734466871920,2.2085,226.41,226.36,2.2089]
[1734466872118,1.4629,226.47,226.34,2.28]
[1734466872315,13.56815545,226.51,226.39,8.2498518]
[1734466872618,9.7923518,226.54,226.4,2.28]
[1734466872825,9.7923518,226.54,226.46,2.2079]
[1734466873117,9.7923518,226.54,226.45,2.28]
[1734466873118,2.2074,226.53,226.45,2.28]
[1734466873322,8.2498518,226.54,226.48,2.2078]
[1734466873520,8.2498518,226.57,226.46,2.28]
[1734466873726,2.2073,226.54,226.46,2.28]
[1734466873920,1.4233,226.59,226.46,2.28]
[1734466874120,8.2498518,226.6,226.48,8.2498518]
[1734466874330,2.2067,226.59,226.48,8.2498518]
[1734466874526,8.2498518,226.63,226.48,8.2498518]
[1734466874722,2.2066,226.6,226.55,2.2071]
[1734466874920,2.2066,226.6,226.55,2.28]
[1734466875127,8.2498518,226.63,226.55,2.28]
[1734466875617,8.2498518,226.63,226.53,2.28]
[1734466875821,8.2498518,226.63,226.52,2.28]
[1734466876324,8.2498518,226.65,226.52,2.28]
[1734466876631,2.2064,226.62,226.57,2.2069]
[1734466876926,8.2498518,226.65,226.57,2.28]
[1734466876927,13.56946308,226.65,226.57,2.28]
[1734466877827,8.2498518,226.62,226.57,2.28]
[1734466878435,2.2068,226.58,226.57,2.28]
[1734466879938,2.2067,226.59,226.57,2.28]
[1734466880232,5.31961128,226.65,226.57,2.28]
[1734466880832,5.31961128,226.65,226.57,4.4869]
[1734466881830,2.2065,226.61,226.57,2.28]
[1734466884738,2.2065,226.61,226.57,4.4869]
[1734466885032,2.2064,226.62,226.57,2.28]
[1734466885636,2.2063,226.64,226.57,2.28]
[1734466885832,1.5189,226.7,226.57,2.28]
[1734466886037,8.2498518,226.71,226.58,8.2498518]
[1734466886232,3.7613,226.76,226.66,2.206]
[1734466886439,12.0111518,226.76,226.66,4.486]
[1734466886741,9.7311518,226.76,226.66,2.28]
[1734466886942,2.2054,226.72,226.67,2.2058]
[1734466887332,1.4527,226.77,226.66,2.28]
[1734466887543,10.5298518,226.79,226.66,2.28]
[1734466887743,8.2498518,226.79,226.67,8.2498518]
[1734466888139,42.79773524,226.82,226.67,8.2498518]
[1734466888348,42.79773524,226.82,226.67,9.6881518]
[1734466888841,5.28813469,226.8,226.67,9.6881518]
[1734466889039,42.79773524,226.82,226.7,8.2498518]
[1734466889241,42.79773524,226.82,226.71,2.28]
[1734466890533,8.2498518,226.79,226.68,2.28]
[1734466892034,8.2498518,226.79,226.65,2.922]
[1734466892238,8.2498518,226.79,226.69,2.28]
[1734466892640,2.2051,226.75,226.7,2.2056]
[1734466893139,2.2052,226.74,226.7,2.2056]
[1734466893440,4.4054,227.01,226.79,2.2047]
[1734466893642,2.2044,226.83,226.79,2.28]
[1734466893844,8.2498518,226.89,226.79,2.28]
[1734466894437,2.2045,226.82,226.79,2.28]
[1734466895535,2.2046,226.81,226.79,2.28]
[1734466897440,2.2045,226.82,226.79,2.28]
[1734466901346,2.2046,226.81,226.79,2.28]
[1734466902844,2.2045,226.82,226.79,2.28]
[1734466903044,5.38551823,226.87,226.79,2.28]
[1734466904448,2.2046,226.81,226.79,2.28]
[1734466907347,2.2049,226.77,226.74,2.28]
[1734466907544,8.2498518,226.86,226.74,2.28]
[1734466908852,8.2498518,226.86,226.74,4.4851]
[1734466909244,8.2498518,226.86,226.74,2.28]
[1734466909450,2.2048,226.78,226.75,2.2051]
[1734466911653,2.2048,226.78,226.74,2.28]
[1734466911947,8.2498518,226.8,226.68,8.2498518]
[1734466912457,8.2498518,226.8,226.69,2.28]
[1734466912651,8.2498518,226.8,226.68,8.2498518]
[1734466912847,2.205,226.77,226.69,4.4856]
[1734466913051,8.2498518,226.8,226.69,4.4856]
[1734466913557,2.2054,226.73,226.69,4.4856]
[1734466914455,3.0932,226.83,226.75,2.2051]
[1734466914655,2.28,226.84,226.75,4.4851]
[1734466915155,2.28,226.84,226.76,2.205]
[1734466917054,2.2048,226.79,226.75,4.4851]
[1734466918346,2.28,226.84,226.75,2.28]
[1734466918548,13.5217518,226.89,226.75,2.28]
[1734466918958,13.5217518,226.89,226.75,3.7005]
[1734466919149,13.5217518,226.89,226.78,2.2048]
[1734466920253,2.2045,226.82,226.78,2.2048]
[1734466921260,2.2045,226.82,226.77,8.2498518]
[1734466921460,2.2045,226.82,226.79,2.2047]
[1734466922162,2.2049,226.78,226.75,3.6256]
[1734466922463,8.2498518,226.86,226.76,2.28]
[1734466922859,2.2047,226.8,226.76,4.485]
[1734466923157,8.2498518,226.83,226.72,1.419]
[1734466923358,8.2498518,226.83,226.68,8.2498518]
[1734466923359,8.2498518,226.8,226.7,2.28]
[1734466923555,2.2053,226.73,226.7,2.28]
[1734466925259,2.2053,226.73,226.7,4.4856]
[1734466927464,2.2053,226.73,226.7,2.28]
[1734466929365,2.2049,226.77,226.71,2.2054]
[1734466929566,8.2498518,226.8,226.7,2.28]
[1734466930461,2.2052,226.75,226.72,2.2054]
[1734466931265,2.2052,226.75,226.71,2.2055]
[1734466937772,8.2498518,226.8,226.7,2.28]
[1734466937973,8.2498518,226.77,226.7,2.28]
[1734466938775,2.2055,226.72,226.7,2.28]
[1734466938978,2.2055,226.72,226.69,2.2057]
[1734466942582,2.2058,226.69,226.66,2.206]
[1734466943579,2.2058,226.68,226.65,2.2061]
[1734466943775,8.2498518,226.71,226.61,2.28]
[1734466943975,5.26746513,226.67,226.6,5.26746513]
[1734466944281,5.26746513,226.67,226.61,2.28]
[1734466944477,2.28,226.74,226.62,5.26746513]
[1734466944680,18.06223111,226.77,226.61,2.28]
[1734466944681,5.26746513,226.75,226.68,5.26746513]
[1734466944878,2.2053,226.74,226.7,2.2056]
[1734466945080,5.3649,226.78,226.7,2.2056]
[1734466945081,5.26746513,226.77,226.7,5.26746513]
[1734466945783,2.2052,226.74,226.7,7.47296513]
[1734466945984,0.2745,226.83,226.71,2.28]
[1734466946186,8.22332241,226.82,226.71,2.28]
[1734466946385,2.2051,226.76,226.72,2.2054]
[1734466947284,8.22332241,226.79,226.71,2.28]
[1734466947888,2.205,226.77,226.71,2.28]
[1734466948085,8.22332241,226.79,226.71,2.28]
[1734466948285,8.22332241,226.79,226.71,4.4855]
[1734466949089,8.22332241,226.79,226.71,2.28]
[1734466949291,2.2053,226.74,226.71,2.28]
[1734466950298,2.2054,226.73,226.71,2.28]
[1734466951292,2.2054,226.72,226.71,2.28]
[1734466951488,8.22332241,226.76,226.67,1.4175]
[1734466952188,8.22332241,226.76,226.65,2.28]
[1734466952390,2.2057,226.7,226.66,2.2059]
[1734466953500,2.206,226.66,226.63,4.4863]
[1734466954298,2.206,226.66,226.63,2.2063]
[1734466954493,10.50332241,226.73,226.64,2.2062]
[1734466954494,2.2059,226.67,226.64,2.2062]
[1734466954793,2.2059,226.67,226.62,2.28]
[1734466954996,10.50332241,226.73,226.61,1.4291]
[1734466954997,8.22332241,226.7,226.61,1.4291]
[1734466955296,8.22332241,226.7,226.61,3.7091]
[1734466955797,2.2062,226.64,226.61,2.28]
[1734466956297,2.28,226.73,226.61,2.28]
[1734466956298,2.2064,226.62,226.61,2.28]
[1734466957796,8.22332241,226.64,226.53,18.28294471]
[1734466958100,8.22332241,226.64,226.54,2.28]
[1734466958900,3.7488,226.67,226.5,1.5249]
[1734466958901,8.22332241,226.61,226.5,1.5249]
[1734466959199,8.22332241,226.61,226.5,3.8049]
[1734466959902,8.22332241,226.58,226.44,8.22332241]
[1734466960104,8.22332241,226.55,226.44,1.4959]
[1734466960297,8.22332241,226.55,226.45,4.488]
[1734466962404,2.2075,226.51,226.45,4.488]
[1734466963599,8.22332241,226.52,226.44,1.4959]
[1734466964203,8.22332241,226.55,226.44,1.4959]
[1734466965305,2.28,226.61,226.46,8.22332241]
[1734466965509,8.22332241,226.6,226.46,8.22332241]
[1734466966412,8.22332241,226.63,226.5,8.22332241]
[1734466966611,8.22332241,226.63,226.51,2.28]
[1734466966799,8.22332241,226.63,226.51,3.8298]
[1734466967000,2.2067,226.59,226.55,2.2071]
[1734466967802,2.2068,226.58,226.53,2.2072]
[1734466969509,2.2068,226.58,226.54,2.2071]
[1734466969905,2.2067,226.6,226.51,5.3001]
[1734466970111,8.22332241,226.63,226.51,5.3001]
[1734466970311,2.28,226.64,226.51,5.3001]
[1734466970509,2.2065,226.62,226.51,5.3001]
[1734466970911,2.2065,226.61,226.56,2.2069]
[1734466971107,2.2065,226.61,226.56,2.28]
[1734466972406,2.2065,226.61,226.57,2.2069]
[1734466980011,7.47658368,226.61,226.58,2.2067]
[1734466980213,5.26867731,226.68,226.58,5.27008368]
[1734466980417,2.28,226.73,226.62,5.27008368]
[1734466980610,2.2058,226.68,226.65,2.2061]
[1734466980815,5.27008368,226.69,226.63,2.28]
[1734466981010,5.27008368,226.67,226.63,2.28]
[1734466981214,5.27008368,226.65,226.58,2.28]
[1734466981410,2.28,226.7,226.58,2.28]
[1734466981411,5.27008368,226.62,226.58,2.28]
[1734466981915,5.27008368,226.62,226.59,2.2067]
[1734466982217,2.2063,226.64,226.58,2.28]
[1734466982416,2.2063,226.64,226.6,2.2066]
[1734466983415,8.23331,226.66,226.58,2.28]
[1734466983416,2.206,226.67,226.63,2.2062]
[1734466983617,8.23331,226.69,226.63,2.2062]
[1734466983914,2.2059,226.68,226.63,2.2062]
[1734466984113,8.23331,226.69,226.63,2.2062]
[1734466984522,2.206,226.67,226.63,2.2062]
[1734466985216,2.2057,226.69,226.58,10.51331]
[1734466985818,5.3968827,226.71,226.58,10.51331]
[1734466986013,2.2058,226.68,226.65,2.2061]
[1734466987420,2.2058,226.68,226.64,2.2061]
[1734466987617,2.2061,226.66,226.63,2.28]
[1734466987821,5.3968827,226.71,226.59,2.28]
[1734466987822,8.23331,226.69,226.59,2.28]
[1734466988214,10.51331,226.69,226.59,2.28]
[1734466988414,2.2063,226.64,226.59,2.28]
[1734466988620,10.51331,226.69,226.59,2.28]
[1734466988921,2.2061,226.66,226.62,2.2064]
[1734466989115,8.23331,226.69,226.59,2.28]
[1734466989323,8.23331,226.69,226.58,2.28]
[1734466989525,2.2062,226.65,226.62,2.2064]
[1734466989725,8.23331,226.69,226.58,2.28]
[1734466990028,5.3968827,226.71,226.58,2.28]
[1734466990323,5.3968827,226.71,226.59,8.23331]
[1734466990622,5.3968827,226.71,226.59,9.73361]
[1734466990822,2.2058,226.68,226.65,2.2061]
[1734466992327,8.23331,226.7,226.63,2.28]
[1734466992519,8.23331,226.67,226.63,2.28]
[1734466992722,8.23331,226.64,226.52,1.4667]
[1734466993024,8.23331,226.61,226.5,1.4795]
[1734466993216,8.23331,226.61,226.51,2.2074]
[1734466993217,2.207,226.56,226.51,2.2074]
[1734466993420,8.23331,226.58,226.49,2.28]
[1734466994024,2.2071,226.55,226.5,2.2075]
[1734466995026,2.2072,226.54,226.5,2.2075]
[1734466995223,8.23331,226.58,226.5,2.2075]
[1734466996132,2.2072,226.55,226.5,2.2075]
[1734466996725,2.207,226.56,226.5,2.2075]
[1734466997026,8.23331,226.58,226.5,2.2075]
[1734466997625,2.2071,226.56,226.5,2.2075]
[1734466997817,2.28,226.61,226.52,2.2073]
[1734466998021,2.207,226.56,226.49,2.28]
[1734466999422,2.207,226.56,226.52,2.2073]
[1734467002224,2.2071,226.55,226.51,4.4875]